[Event "Late-Titled-Tuesday-Blitz-January-16-2024"]
[Site "Chess.com"]
[Date "2024.01.16"]
[Round "8"]
[White "bazar-wokzal"]
[Black "APOKALIPSA13"]
[Result "1-0"]
[WhiteElo "2572"]
[BlackElo "2190"]
[TimeControl "180+1"]
[EndTime "15:29:55 PST"]
[Termination "bazar-wokzal won by resignation"]

1. e4 {[%clk 0:02:59.2]} 1... e5 {[%clk 0:03:00.1]} 2. Bc4 {[%clk 0:02:53.9]}
2... Nf6 {[%clk 0:02:59.9]} 3. d3 {[%clk 0:02:53.6]} 3... c6 {[%clk 0:02:59.9]}
4. Nf3 {[%clk 0:02:52.9]} 4... d5 {[%clk 0:03:00.2]} 5. Bb3 {[%clk 0:02:52.5]}
5... Bd6 {[%clk 0:02:59.6]} 6. Nc3 {[%clk 0:02:52.1]} 6... d4 {[%clk 0:02:58.7]}
7. Ne2 {[%clk 0:02:51.6]} 7... h6 {[%clk 0:02:59.1]} 8. c3 {[%clk 0:02:50]} 8...
c5 {[%clk 0:02:55.9]} 9. O-O {[%clk 0:02:49]} 9... O-O {[%clk 0:02:55.4]} 10.
cxd4 {[%clk 0:02:48.8]} 10... cxd4 {[%clk 0:02:54.6]} 11. Ng3 {[%clk 0:02:44.4]}
11... Bg4 {[%clk 0:02:51.2]} 12. h3 {[%clk 0:02:43.8]} 12... Be6 {[%clk
0:02:50.5]} 13. Nh4 {[%clk 0:02:37.3]} 13... Qb6 {[%clk 0:02:43.1]} 14. Nhf5
{[%clk 0:02:34.2]} 14... Bxb3 {[%clk 0:02:41.2]} 15. axb3 {[%clk 0:02:25.5]}
15... Rd8 {[%clk 0:02:36.3]} 16. f4 {[%clk 0:02:19.2]} 16... Nbd7 {[%clk
0:02:02]} 17. Nxd6 {[%clk 0:01:53.9]} 17... Qxd6 {[%clk 0:02:02.9]} 18. Nf5
{[%clk 0:01:54.2]} 18... Qf8 {[%clk 0:02:00.2]} 19. fxe5 {[%clk 0:01:44.8]}
19... Nxe5 {[%clk 0:01:59.3]} 20. Nxh6+ {[%clk 0:01:44.6]} 20... gxh6 {[%clk
0:01:41.2]} 21. Rxf6 {[%clk 0:01:43.2]} 21... Rd6 {[%clk 0:01:40.7]} 22. Bxh6
{[%clk 0:01:38.4]} 22... Qd8 {[%clk 0:01:39]} 23. Rxd6 {[%clk 0:01:35]} 23...
Qxd6 {[%clk 0:01:39.9]} 24. Bf4 {[%clk 0:01:32.7]} 24... Qf6 {[%clk 0:01:35.2]}
25. Bxe5 {[%clk 0:01:30.7]} 25... Qxe5 {[%clk 0:01:36.1]} 26. Qg4+ {[%clk
0:01:30.8]} 26... Kf8 {[%clk 0:01:28.9]} 27. Rf1 {[%clk 0:01:29.2]} 27... Rd8
{[%clk 0:01:24.9]} 28. Rf5 {[%clk 0:01:21.7]} 28... Qc7 {[%clk 0:01:17.6]} 29.
Qh4 {[%clk 0:01:14.7]} 29... Qc1+ {[%clk 0:01:12.1]} 30. Kh2 {[%clk 0:01:14.4]}
30... Qc7+ {[%clk 0:01:12]} 31. e5 {[%clk 0:01:07.4]} 31... Rd5 {[%clk 0:01:05]}
32. Qh8+ {[%clk 0:01:00.2]} 32... Ke7 {[%clk 0:01:04.9]} 33. Qf6+ {[%clk
0:01:00.8]} 33... Ke8 {[%clk 0:01:04.8]} 34. h4 {[%clk 0:01:00.6]} 34... Qe7
{[%clk 0:00:59.4]} 35. Qxe7+ {[%clk 0:00:48.7]} 35... Kxe7 {[%clk 0:00:59.2]}
36. h5 {[%clk 0:00:47.8]} 36... Kf8 {[%clk 0:00:35.4]} 37. g4 {[%clk 0:00:44.9]}
37... Kg7 {[%clk 0:00:33.1]} 38. g5 {[%clk 0:00:45.1]} 38... b6 {[%clk
0:00:25.9]} 39. Kg3 {[%clk 0:00:44.9]} 39... Rb5 {[%clk 0:00:23.9]} 40. Kf4
{[%clk 0:00:42]} 40... Rxb3 {[%clk 0:00:22.8]} 41. h6+ {[%clk 0:00:42.1]} 41...
Kg8 {[%clk 0:00:22.7]} 42. Ke4 {[%clk 0:00:30.9]} 42... Rxb2 {[%clk 0:00:21]}
43. Kxd4 {[%clk 0:00:28.5]} 43... a5 {[%clk 0:00:19.8]} 44. Kc3 {[%clk
0:00:26.2]} 44... Re2 {[%clk 0:00:17.1]} 45. d4 {[%clk 0:00:23.7]} 45... b5
{[%clk 0:00:16.8]} 46. e6 {[%clk 0:00:20.3]} 46... b4+ {[%clk 0:00:08.6]} 47.
Kd3 {[%clk 0:00:20]} 47... Rxe6 {[%clk 0:00:07.6]} 48. Rxa5 {[%clk 0:00:19.6]}
48... Rb6 {[%clk 0:00:07.1]} 49. Kc2 {[%clk 0:00:18.6]} 49... Kh7 {[%clk
0:00:05.9]} 50. Kb3 {[%clk 0:00:17.6]} 50... Kg6 {[%clk 0:00:05.2]} 51. Re5
{[%clk 0:00:16]} 51... Rd6 {[%clk 0:00:03.6]} 52. d5 {[%clk 0:00:14.1]} 52...
Rb6 {[%clk 0:00:02.8]} 53. Re8 {[%clk 0:00:12.9]} 53... Kxg5 {[%clk 0:00:02.2]}
54. h7 {[%clk 0:00:12.9]} 54... Rh6 {[%clk 0:00:01.5]} 55. h8=Q {[%clk
0:00:12.6]} 55... Rxh8 {[%clk 0:00:02]} 56. Rxh8 {[%clk 0:00:12.9]} 56... Kf5
{[%clk 0:00:02.9]} 57. Kxb4 {[%clk 0:00:12.6]} 57... Ke5 {[%clk 0:00:03.5]} 58.
Kc5 {[%clk 0:00:13.1]} 58... f5 {[%clk 0:00:03.5]} 59. Re8+ {[%clk 0:00:14]}
59... Kf6 {[%clk 0:00:03.5]} 60. d6 {[%clk 0:00:14.9]} 60... f4 {[%clk
0:00:03.8]} 61. d7 {[%clk 0:00:15.8]} 61... f3 {[%clk 0:00:04.2]} 62. d8=Q+
{[%clk 0:00:16.3]} 62... Kf5 {[%clk 0:00:04.3]} 63. Qd5+ {[%clk 0:00:15.3]}
63... Kg4 {[%clk 0:00:05.2]} 64. Rg8+ {[%clk 0:00:15.2]} 64... Kh3 {[%clk
0:00:05.3]} 65. Qxf3+ {[%clk 0:00:14.3]} 1-0

[Event "Late-Titled-Tuesday-Blitz-January-16-2024"]
[Site "Chess.com"]
[Date "2024.01.16"]
[Round "8"]
[White "Hui_Li_Macau"]
[Black "Bala-Afiada"]
[Result "1-0"]
[WhiteElo "2320"]
[BlackElo "2053"]
[TimeControl "180+1"]
[EndTime "15:30:08 PST"]
[Termination "Hui_Li_Macau won by resignation"]

1. e4 {[%clk 0:03:00.9]} 1... c5 {[%clk 0:02:59.9]} 2. Nf3 {[%clk 0:03:01]} 2...
Nc6 {[%clk 0:03:00.2]} 3. d4 {[%clk 0:03:01.5]} 3... cxd4 {[%clk 0:03:01.1]} 4.
Nxd4 {[%clk 0:03:02.4]} 4... Nf6 {[%clk 0:03:01.5]} 5. Nc3 {[%clk 0:03:02.8]}
5... d6 {[%clk 0:03:01]} 6. Bg5 {[%clk 0:03:02]} 6... e6 {[%clk 0:03:00.5]} 7.
Qd2 {[%clk 0:03:02.3]} 7... Be7 {[%clk 0:03:00.6]} 8. O-O-O {[%clk 0:03:01.2]}
8... O-O {[%clk 0:02:59.8]} 9. Kb1 {[%clk 0:02:59.6]} 9... d5 {[%clk 0:02:59.5]}
10. Nxc6 {[%clk 0:01:41.8]} 10... bxc6 {[%clk 0:02:57.5]} 11. e5 {[%clk
0:01:30.2]} 11... Nd7 {[%clk 0:02:57.4]} 12. Bxe7 {[%clk 0:01:27.6]} 12... Qxe7
{[%clk 0:02:58.3]} 13. f4 {[%clk 0:01:27.5]} 13... c5 {[%clk 0:02:57.7]} 14. Bd3
{[%clk 0:01:25.5]} 14... c4 {[%clk 0:02:53]} 15. Be2 {[%clk 0:01:14.5]} 15...
Rb8 {[%clk 0:02:42.4]} 16. Bf3 {[%clk 0:01:13.9]} 16... Qb4 {[%clk 0:02:38.6]}
17. b3 {[%clk 0:01:09.5]} 17... cxb3 {[%clk 0:02:30.7]} 18. cxb3 {[%clk
0:01:09.8]} 18... Nc5 {[%clk 0:02:21.8]} 19. Ne2 {[%clk 0:01:04.8]} 19... Qa3
{[%clk 0:01:57.6]} 20. Nd4 {[%clk 0:00:55.4]} 20... Ba6 {[%clk 0:01:45.7]} 21.
Qc1 {[%clk 0:00:38.9]} 21... Qxc1+ {[%clk 0:01:31.7]} 22. Rxc1 {[%clk
0:00:37.8]} 22... Nd3 {[%clk 0:01:21.8]} 23. Rc7 {[%clk 0:00:31.7]} 23... Rb7
{[%clk 0:01:07.1]} 24. Rxb7 {[%clk 0:00:27.4]} 24... Bxb7 {[%clk 0:01:08]} 25.
g3 {[%clk 0:00:25.1]} 25... Rc8 {[%clk 0:01:07.5]} 26. a3 {[%clk 0:00:20.4]}
26... Ba6 {[%clk 0:00:55.5]} 27. Be2 {[%clk 0:00:13]} 27... Nc5 {[%clk
0:00:48.9]} 28. Rc1 {[%clk 0:00:09.5]} 28... Bxe2 {[%clk 0:00:47.8]} 29. Nxe2
{[%clk 0:00:10.4]} 29... Rc7 {[%clk 0:00:45]} 30. Nd4 {[%clk 0:00:10.2]} 30...
Na6 {[%clk 0:00:45]} 31. Rxc7 {[%clk 0:00:10.2]} 31... Nxc7 {[%clk 0:00:45.9]}
32. Kc2 {[%clk 0:00:10.6]} 32... Kf8 {[%clk 0:00:43.7]} 33. Kc3 {[%clk
0:00:10.8]} 33... Ke8 {[%clk 0:00:43.7]} 34. Kb4 {[%clk 0:00:11.2]} 34... Kd7
{[%clk 0:00:44.2]} 35. Kc5 {[%clk 0:00:09.4]} 35... Na6+ {[%clk 0:00:42.4]} 36.
Kb5 {[%clk 0:00:09]} 36... Nc7+ {[%clk 0:00:41.1]} 37. Kc5 {[%clk 0:00:07.3]}
37... Na6+ {[%clk 0:00:41.3]} 38. Kb5 {[%clk 0:00:07.5]} 38... Nc7+ {[%clk
0:00:40.5]} 39. Ka5 {[%clk 0:00:07.6]} 39... Kc8 {[%clk 0:00:37.6]} 40. b4
{[%clk 0:00:07.2]} 40... Kb7 {[%clk 0:00:36.9]} 41. b5 {[%clk 0:00:07.5]} 41...
f6 {[%clk 0:00:31.2]} 42. a4 {[%clk 0:00:03.3]} 42... fxe5 {[%clk 0:00:28.5]}
43. fxe5 {[%clk 0:00:04.2]} 43... Na8 {[%clk 0:00:17]} 44. Kb4 {[%clk 0:00:04]}
44... Nb6 {[%clk 0:00:17.3]} 45. a5 {[%clk 0:00:03.2]} 45... Nc4 {[%clk
0:00:17.9]} 46. Nxe6 {[%clk 0:00:02.8]} 46... Nxe5 {[%clk 0:00:18]} 47. Nxg7
{[%clk 0:00:02.6]} 47... Nd3+ {[%clk 0:00:15.6]} 48. Kc3 {[%clk 0:00:02.4]}
48... Nf2 {[%clk 0:00:14.3]} 49. Kd4 {[%clk 0:00:01.5]} 49... Ng4 {[%clk
0:00:13.9]} 50. h3 {[%clk 0:00:01.8]} 50... Nf2 {[%clk 0:00:13.7]} 51. h4 {[%clk
0:00:01.5]} 51... Nh1 {[%clk 0:00:12]} 52. g4 {[%clk 0:00:01.8]} 52... Ng3
{[%clk 0:00:12.9]} 53. Kxd5 {[%clk 0:00:01.8]} 53... Ne2 {[%clk 0:00:11.6]} 54.
Nf5 {[%clk 0:00:02.2]} 54... Nf4+ {[%clk 0:00:12]} 55. Kc5 {[%clk 0:00:02]}
55... Nd3+ {[%clk 0:00:12.1]} 56. Kd4 {[%clk 0:00:02]} 56... Nf2 {[%clk
0:00:12.1]} 57. Nd6+ {[%clk 0:00:01.5]} 57... Kc7 {[%clk 0:00:12]} 58. Ne4
{[%clk 0:00:01.1]} 58... Nxg4 {[%clk 0:00:11.5]} 59. Nc5 {[%clk 0:00:01.4]}
59... Nf2 {[%clk 0:00:10.5]} 60. Ke5 {[%clk 0:00:01.5]} 60... Nd1 {[%clk
0:00:10.9]} 61. Ne6+ {[%clk 0:00:01.6]} 61... Kd7 {[%clk 0:00:10.7]} 62. Nf8+
{[%clk 0:00:01.9]} 62... Kc7 {[%clk 0:00:10.9]} 63. Nxh7 {[%clk 0:00:02.8]}
63... Ne3 {[%clk 0:00:11.4]} 64. Ng5 {[%clk 0:00:02.4]} 64... Nc4+ {[%clk
0:00:12]} 65. Kf6 {[%clk 0:00:02.6]} 65... Nxa5 {[%clk 0:00:12.9]} 66. h5 {[%clk
0:00:03.1]} 66... Nc4 {[%clk 0:00:13.8]} 67. h6 {[%clk 0:00:03.4]} 67... Ne5
{[%clk 0:00:14.7]} 68. Kxe5 {[%clk 0:00:03.6]} 68... Kb6 {[%clk 0:00:15.1]} 69.
h7 {[%clk 0:00:03.8]} 69... Kxb5 {[%clk 0:00:16]} 70. h8=Q {[%clk 0:00:04.1]}
1-0

[Event "Late-Titled-Tuesday-Blitz-January-16-2024"]
[Site "Chess.com"]
[Date "2024.01.16"]
[Round "8"]
[White "ChessBrainiacOnTwitch"]
[Black "Nf3c5"]
[Result "1/2-1/2"]
[WhiteElo "2786"]
[BlackElo "2566"]
[TimeControl "180+1"]
[EndTime "15:30:24 PST"]
[Termination "Game drawn by repetition"]

1. Nf3 {[%clk 0:03:00.9]} 1... d5 {[%clk 0:02:59.3]} 2. g3 {[%clk 0:03:00.9]}
2... c6 {[%clk 0:02:59.4]} 3. Bg2 {[%clk 0:02:59.6]} 3... Nf6 {[%clk 0:02:59.9]}
4. O-O {[%clk 0:03:00]} 4... Bf5 {[%clk 0:03:00.4]} 5. d3 {[%clk 0:03:00.5]}
5... e6 {[%clk 0:02:58.4]} 6. Nbd2 {[%clk 0:03:01.4]} 6... h6 {[%clk 0:02:58.6]}
7. Re1 {[%clk 0:02:59.9]} 7... Be7 {[%clk 0:02:58.1]} 8. Ne5 {[%clk 0:02:57.5]}
8... O-O {[%clk 0:02:51.6]} 9. e4 {[%clk 0:02:56.6]} 9... Bh7 {[%clk 0:02:51.3]}
10. Qe2 {[%clk 0:02:56.2]} 10... Nbd7 {[%clk 0:02:51]} 11. Nef3 {[%clk
0:02:53.8]} 11... dxe4 {[%clk 0:02:35.6]} 12. dxe4 {[%clk 0:02:54.7]} 12... Nc5
{[%clk 0:02:31.2]} 13. e5 {[%clk 0:02:52.1]} 13... Nd5 {[%clk 0:02:29.3]} 14.
Nc4 {[%clk 0:02:47.4]} 14... Nb4 {[%clk 0:02:24.4]} 15. Ne3 {[%clk 0:02:46.1]}
15... b5 {[%clk 0:01:48.9]} 16. Rd1 {[%clk 0:02:43.8]} 16... Qc7 {[%clk
0:01:48.5]} 17. h4 {[%clk 0:02:31.1]} 17... Rad8 {[%clk 0:01:45.2]} 18. Re1
{[%clk 0:02:28.1]} 18... a5 {[%clk 0:01:35.1]} 19. h5 {[%clk 0:02:26]} 19... a4
{[%clk 0:01:35]} 20. a3 {[%clk 0:02:24.2]} 20... Nbd3 {[%clk 0:01:26]} 21. cxd3
{[%clk 0:01:49.8]} 21... Bxd3 {[%clk 0:01:26.9]} 22. Qd1 {[%clk 0:01:43]} 22...
Nb3 {[%clk 0:01:26]} 23. Bd2 {[%clk 0:01:24.7]} 23... Be4 {[%clk 0:01:21.1]} 24.
Re2 {[%clk 0:01:14.1]} 24... Bxf3 {[%clk 0:00:41.8]} 25. Bxf3 {[%clk 0:01:13.7]}
25... Nxa1 {[%clk 0:00:38.3]} 26. Qxa1 {[%clk 0:01:14.6]} 26... Rd3 {[%clk
0:00:32.4]} 27. Bc3 {[%clk 0:01:11.4]} 27... Rfd8 {[%clk 0:00:32.1]} 28. Be4
{[%clk 0:01:10.2]} 28... R3d7 {[%clk 0:00:31.4]} 29. Kg2 {[%clk 0:01:05.2]}
29... c5 {[%clk 0:00:31.8]} 30. f4 {[%clk 0:00:58.5]} 30... b4 {[%clk
0:00:31.8]} 31. axb4 {[%clk 0:00:59]} 31... cxb4 {[%clk 0:00:32.7]} 32. Be1
{[%clk 0:00:59.6]} 32... Qa5 {[%clk 0:00:30.4]} 33. Bc6 {[%clk 0:00:45.6]} 33...
Rd3 {[%clk 0:00:25.2]} 34. Qxa4 {[%clk 0:00:43.5]} 34... Qc5 {[%clk 0:00:25.8]}
35. Nf1 {[%clk 0:00:34.2]} 35... Qc1 {[%clk 0:00:18.5]} 36. Qc2 {[%clk 0:00:31]}
36... Qa1 {[%clk 0:00:16.5]} 37. Bf2 {[%clk 0:00:26.3]} 37... b3 {[%clk
0:00:16.5]} 38. Qc4 {[%clk 0:00:23.7]} 38... Rd1 {[%clk 0:00:16.6]} 39. Ne3
{[%clk 0:00:22.6]} 39... Rc1 {[%clk 0:00:17.1]} 40. Qa4 {[%clk 0:00:21]} 40...
Qb1 {[%clk 0:00:16.2]} 41. Qxb3 {[%clk 0:00:19.1]} 41... Rxc6 {[%clk 0:00:15.5]}
42. Nc4 {[%clk 0:00:13.5]} 42... Qd1 {[%clk 0:00:13.2]} 43. Qxd1 {[%clk
0:00:12.4]} 43... Rxd1 {[%clk 0:00:14.1]} 44. b3 {[%clk 0:00:13]} 44... Rb1
{[%clk 0:00:13.9]} 45. Re3 {[%clk 0:00:11.6]} 45... Bc5 {[%clk 0:00:14]} 46. Rf3
{[%clk 0:00:11.4]} 46... Bxf2 {[%clk 0:00:14]} 47. Kxf2 {[%clk 0:00:12.3]} 47...
Rc5 {[%clk 0:00:14]} 48. Rc3 {[%clk 0:00:10.6]} 48... Rb5 {[%clk 0:00:13.8]} 49.
Nd2 {[%clk 0:00:11.3]} 49... Rb2 {[%clk 0:00:13.7]} 50. Ke3 {[%clk 0:00:11.9]}
50... Rd5 {[%clk 0:00:14.2]} 51. Ne4 {[%clk 0:00:09.9]} 51... Rd1 {[%clk
0:00:12.9]} 52. Nd6 {[%clk 0:00:06.9]} 52... Rdb1 {[%clk 0:00:12]} 53. Rc8+
{[%clk 0:00:06.9]} 53... Kh7 {[%clk 0:00:12.3]} 54. Nxf7 {[%clk 0:00:07.6]}
54... Rxb3+ {[%clk 0:00:12.7]} 55. Kd4 {[%clk 0:00:02.5]} 55... Rd1+ {[%clk
0:00:11.3]} 56. Kc4 {[%clk 0:00:02.9]} 56... Rc1+ {[%clk 0:00:11.5]} 57. Kxb3
{[%clk 0:00:03.5]} 57... Rxc8 {[%clk 0:00:12.3]} 58. Nd6 {[%clk 0:00:04.3]}
58... Rc1 {[%clk 0:00:12]} 59. Ne4 {[%clk 0:00:04.3]} 59... Re1 {[%clk
0:00:11.6]} 60. Nc5 {[%clk 0:00:05]} 60... Re3+ {[%clk 0:00:11.9]} 61. Kc4
{[%clk 0:00:05.1]} 61... Rxg3 {[%clk 0:00:11.3]} 62. Nxe6 {[%clk 0:00:05.7]}
62... Kg8 {[%clk 0:00:12.2]} 63. Kd5 {[%clk 0:00:05.7]} 63... Rg1 {[%clk
0:00:11.8]} 64. Ke4 {[%clk 0:00:06]} 64... Kf7 {[%clk 0:00:11.9]} 65. Kf5 {[%clk
0:00:06.5]} 65... Ra1 {[%clk 0:00:11.6]} 66. Nd8+ {[%clk 0:00:06]} 66... Ke8
{[%clk 0:00:11.7]} 67. Nc6 {[%clk 0:00:06.5]} 67... Rg1 {[%clk 0:00:10.9]} 68.
Nd4 {[%clk 0:00:06.7]} 68... Kf7 {[%clk 0:00:10.9]} 69. Ne6 {[%clk 0:00:07.3]}
69... Rh1 {[%clk 0:00:10.5]} 70. Nd8+ {[%clk 0:00:07]} 70... Ke8 {[%clk
0:00:10.8]} 71. Ne6 {[%clk 0:00:06.7]} 71... Kf7 {[%clk 0:00:10.3]} 72. Nd8+
{[%clk 0:00:06.3]} 72... Kg8 {[%clk 0:00:10.9]} 73. Kg6 {[%clk 0:00:04.6]} 73...
Rg1+ {[%clk 0:00:10.7]} 74. Kf5 {[%clk 0:00:05.3]} 74... Rd1 {[%clk 0:00:11.1]}
75. Ne6 {[%clk 0:00:05.6]} 75... Kf7 {[%clk 0:00:11.6]} 76. Nc5 {[%clk
0:00:05.3]} 76... Rd5 {[%clk 0:00:11]} 77. Ne4 {[%clk 0:00:04.7]} 77... Rd1
{[%clk 0:00:10.4]} 78. Nd6+ {[%clk 0:00:05.3]} 78... Kg8 {[%clk 0:00:10.5]} 79.
Ke6 {[%clk 0:00:05.9]} 79... Ra1 {[%clk 0:00:09.4]} 80. f5 {[%clk 0:00:06.2]}
80... Ra6 {[%clk 0:00:10]} 81. Ke7 {[%clk 0:00:05.4]} 81... Ra7+ {[%clk
0:00:09.9]} 82. Ke6 {[%clk 0:00:05.6]} 82... Ra6 {[%clk 0:00:10.5]} 83. Kd5
{[%clk 0:00:04]} 83... Ra5+ {[%clk 0:00:10.5]} 84. Ke6 {[%clk 0:00:04.4]} 84...
Ra6 {[%clk 0:00:10.9]} 1/2-1/2

[Event "Late-Titled-Tuesday-Blitz-January-16-2024"]
[Site "Chess.com"]
[Date "2024.01.16"]
[Round "8"]
[White "GiorgianBarbosa"]
[Black "GrotBchess"]
[Result "0-1"]
[WhiteElo "2463"]
[BlackElo "2338"]
[TimeControl "180+1"]
[EndTime "15:31:04 PST"]
[Termination "GrotBchess won on time"]

1. d4 {[%clk 0:03:00.9]} 1... Nf6 {[%clk 0:02:58.9]} 2. Nf3 {[%clk 0:03:01.8]}
2... e6 {[%clk 0:02:59.1]} 3. Bf4 {[%clk 0:03:02.3]} 3... d5 {[%clk 0:02:59.4]}
4. e3 {[%clk 0:03:02.4]} 4... c5 {[%clk 0:02:59.8]} 5. c3 {[%clk 0:03:01.7]}
5... Nc6 {[%clk 0:03:00.4]} 6. Bd3 {[%clk 0:02:59.8]} 6... Bd6 {[%clk
0:03:00.5]} 7. Bg3 {[%clk 0:02:56]} 7... Qe7 {[%clk 0:03:00.6]} 8. Nbd2 {[%clk
0:02:55.4]} 8... e5 {[%clk 0:02:58.7]} 9. dxe5 {[%clk 0:02:52.5]} 9... Nxe5
{[%clk 0:02:59.6]} 10. Nxe5 {[%clk 0:02:47.5]} 10... Bxe5 {[%clk 0:03:00.5]} 11.
Bb5+ {[%clk 0:02:44.6]} 11... Bd7 {[%clk 0:02:57.1]} 12. a4 {[%clk 0:02:37.9]}
12... a6 {[%clk 0:02:51.2]} 13. Bxd7+ {[%clk 0:02:30.9]} 13... Nxd7 {[%clk
0:02:52.1]} 14. Nf3 {[%clk 0:02:27.3]} 14... Qe6 {[%clk 0:02:47.7]} 15. Qd3
{[%clk 0:02:15.3]} 15... O-O {[%clk 0:02:40]} 16. Rd1 {[%clk 0:02:14]} 16... d4
{[%clk 0:02:18.3]} 17. cxd4 {[%clk 0:02:05.7]} 17... cxd4 {[%clk 0:02:16.8]} 18.
Nxd4 {[%clk 0:02:05.3]} 18... Bxd4 {[%clk 0:02:16.1]} 19. Qxd4 {[%clk
0:02:06.2]} 19... Nf6 {[%clk 0:02:09.2]} 20. O-O {[%clk 0:02:04.7]} 20... h6
{[%clk 0:02:06]} 21. Bh4 {[%clk 0:02:01.2]} 21... Ne4 {[%clk 0:01:57]} 22. f3
{[%clk 0:01:50.1]} 22... Ng5 {[%clk 0:01:46.7]} 23. Bxg5 {[%clk 0:01:48.2]}
23... hxg5 {[%clk 0:01:47.6]} 24. e4 {[%clk 0:01:48.4]} 24... Rac8 {[%clk
0:01:44.5]} 25. Rd2 {[%clk 0:01:37.9]} 25... Rc4 {[%clk 0:01:39.6]} 26. Qd5
{[%clk 0:01:37.1]} 26... Qxd5 {[%clk 0:01:36.2]} 27. Rxd5 {[%clk 0:01:32.6]}
27... Rxa4 {[%clk 0:01:35.5]} 28. Rxg5 {[%clk 0:01:31.7]} 28... Rb4 {[%clk
0:01:35.6]} 29. Rf2 {[%clk 0:01:29.9]} 29... Rc8 {[%clk 0:01:33]} 30. g3 {[%clk
0:01:26.3]} 30... Rc1+ {[%clk 0:01:32.2]} 31. Kg2 {[%clk 0:01:24.6]} 31... Rb1
{[%clk 0:01:32.3]} 32. Rd5 {[%clk 0:01:18.5]} 32... R1xb2 {[%clk 0:01:30.2]} 33.
Rd8+ {[%clk 0:01:18.9]} 33... Kh7 {[%clk 0:01:29.7]} 34. Rd7 {[%clk 0:01:17.1]}
34... Rxf2+ {[%clk 0:01:28.3]} 35. Kxf2 {[%clk 0:01:16.6]} 35... Rb2+ {[%clk
0:01:28.8]} 36. Ke3 {[%clk 0:01:16.8]} 36... f6 {[%clk 0:01:29.3]} 37. h4 {[%clk
0:01:14.4]} 37... a5 {[%clk 0:01:29]} 38. Kf4 {[%clk 0:00:14.3]} 38... a4 {[%clk
0:01:27.8]} 39. Rd8 {[%clk 0:00:13.7]} 39... b5 {[%clk 0:01:23.9]} 40. Ra8
{[%clk 0:00:14.6]} 40... Rb3 {[%clk 0:01:22.8]} 41. g4 {[%clk 0:00:14.4]} 41...
a3 {[%clk 0:01:22.4]} 42. g5 {[%clk 0:00:14]} 42... b4 {[%clk 0:01:19.8]} 43.
Kg4 {[%clk 0:00:10.8]} 43... Rb2 {[%clk 0:01:12.7]} 44. f4 {[%clk 0:00:09.2]}
44... a2 {[%clk 0:01:03.6]} 45. f5 {[%clk 0:00:08.5]} 45... fxg5 {[%clk
0:00:49.2]} 46. hxg5 {[%clk 0:00:07]} 46... g6 {[%clk 0:00:49.5]} 47. Ra7+
{[%clk 0:00:05.5]} 47... Kg8 {[%clk 0:00:49]} 48. f6 {[%clk 0:00:03.7]} 48...
Re2 {[%clk 0:00:46.1]} 49. Ra8+ {[%clk 0:00:03.2]} 49... Kf7 {[%clk 0:00:44]}
50. Ra7+ {[%clk 0:00:04.1]} 50... Ke6 {[%clk 0:00:30.7]} 51. Kf3 {[%clk
0:00:04.8]} 51... Rc2 {[%clk 0:00:23.7]} 52. f7 {[%clk 0:00:05.7]} 52... Rc8
{[%clk 0:00:22.9]} 53. Rxa2 {[%clk 0:00:06.3]} 53... Kxf7 {[%clk 0:00:22.7]} 54.
Ra7+ {[%clk 0:00:06.3]} 54... Ke6 {[%clk 0:00:20.4]} 55. Ra6+ {[%clk 0:00:07.2]}
55... Kf7 {[%clk 0:00:20]} 56. Rf6+ {[%clk 0:00:07.2]} 56... Kg7 {[%clk
0:00:20.1]} 57. Rb6 {[%clk 0:00:08]} 57... Rc4 {[%clk 0:00:20.3]} 58. Kf4 {[%clk
0:00:07.1]} 58... Kf7 {[%clk 0:00:20.5]} 59. Rb5 {[%clk 0:00:06.9]} 59... Ke7
{[%clk 0:00:17.3]} 60. Ke5 {[%clk 0:00:07.8]} 60... Kf7 {[%clk 0:00:16.8]} 61.
Rb7+ {[%clk 0:00:08.2]} 61... Kf8 {[%clk 0:00:16.8]} 62. Rb6 {[%clk 0:00:07.6]}
62... Kf7 {[%clk 0:00:16.2]} 63. Kd5 {[%clk 0:00:07.4]} 63... Rc1 {[%clk
0:00:13.9]} 64. Rxb4 {[%clk 0:00:07.9]} 64... Rg1 {[%clk 0:00:13.8]} 65. Rb7+
{[%clk 0:00:07.3]} 65... Kf8 {[%clk 0:00:12.3]} 66. Ke6 {[%clk 0:00:07.8]} 66...
Rf1 {[%clk 0:00:09.1]} 67. e5 {[%clk 0:00:07.5]} 67... Rf5 {[%clk 0:00:07.6]}
68. Rb8+ {[%clk 0:00:06.2]} 68... Kg7 {[%clk 0:00:07.4]} 69. Rb7+ {[%clk
0:00:07.1]} 69... Kf8 {[%clk 0:00:07.3]} 70. Rh7 {[%clk 0:00:05.8]} 70... Rxg5
{[%clk 0:00:06.7]} 71. Rh6 {[%clk 0:00:03.3]} 71... Kg7 {[%clk 0:00:06.2]} 72.
Rh2 {[%clk 0:00:03.6]} 72... Rg1 {[%clk 0:00:06]} 73. Rb2 {[%clk 0:00:03.8]}
73... Re1 {[%clk 0:00:06.1]} 74. Rd2 {[%clk 0:00:03.6]} 74... g5 {[%clk
0:00:05.7]} 75. Kd6 {[%clk 0:00:04.1]} 75... g4 {[%clk 0:00:05.4]} 76. Rg2
{[%clk 0:00:03.3]} 76... Re4 {[%clk 0:00:05.1]} 77. Ke6 {[%clk 0:00:03.8]} 77...
Kg6 {[%clk 0:00:04.7]} 78. Kd5 {[%clk 0:00:04]} 78... Rf4 {[%clk 0:00:04.2]} 79.
e6 {[%clk 0:00:03.8]} 79... Kf6 {[%clk 0:00:03.6]} 80. Kd6 {[%clk 0:00:03]}
80... Re4 {[%clk 0:00:03.1]} 81. Kc5 {[%clk 0:00:03.9]} 81... Kxe6 {[%clk
0:00:01.9]} 82. Kb5 {[%clk 0:00:03.6]} 82... Kf5 {[%clk 0:00:02.6]} 83. Kc5
{[%clk 0:00:03.7]} 83... Rf4 {[%clk 0:00:03.5]} 84. Kd5 {[%clk 0:00:04.4]} 84...
Rf3 {[%clk 0:00:04]} 85. Re2 {[%clk 0:00:05.2]} 85... Kf4 {[%clk 0:00:04.7]} 86.
Re8 {[%clk 0:00:05.3]} 86... g3 {[%clk 0:00:05.2]} 87. Rf8+ {[%clk 0:00:06.2]}
87... Kg4 {[%clk 0:00:05.8]} 88. Ke4 {[%clk 0:00:06.9]} 88... Rxf8 {[%clk
0:00:05]} 0-1